fUST/lending_fUST_20250825
["ID","MTS","AMOUNT","RATE_DAILY","PERIOD"]
[381264977,1756113039650,-151.0,0.0003949,30]
[381264978,1756113039663,-151.0,0.0003949,30]
[381264979,1756113039676,-151.0,0.0003949,30]
[381264980,1756113039688,-151.0,0.0003949,30]
[381264981,1756113039701,-1514.94,0.0003949,120]
[381264982,1756113039713,-151.0,0.0003949,30]
[381264983,1756113039726,-151.0,0.0003949,30]
[381264984,1756113039737,-254.611427,0.0003949,30]
[381264985,1756113039750,-151.0,0.0003949,30]
[381264986,1756113039762,-151.0,0.0003949,30]
[381264987,1756113039775,-2089.97519218,0.0003949,61]
[381264988,1756113039787,-376.30788339,0.0003949,3]
[381264989,1756113039799,-202687.66641,0.0003949,3]
[381264990,1756113039812,-232.4766599,0.0003949,3]
[381264991,1756113039824,-918.54963045,0.00039492,2]
[381264992,1756113039836,-151.0,0.000395,30]
[381264993,1756113039848,-151.54347,0.000395,30]
[381264994,1756113039860,-151.0,0.000395,15]
[381264995,1756113039873,-151.0,0.000395,30]
[381264996,1756113039885,-151.0,0.000395,30]
[381264997,1756113039897,-151.0,0.000395,30]
[381264998,1756113039909,-151.0,0.000395,30]
[381264999,1756113039922,-152.219056,0.000395,30]
[381265000,1756113039934,-151.0,0.000395,30]
[381265001,1756113039946,-151.0,0.000395,30]
[381265002,1756113039959,-151.752834,0.000395,30]
[381265003,1756113039971,-151.0,0.000395,30]
[381265004,1756113039983,-152.452253,0.000395,30]
[381265005,1756113039996,-151.0,0.000395,30]
[381265006,1756113040007,-151.0,0.000395,30]
[381265007,1756113040020,-151.0,0.000395,14]
[381265008,1756113040032,-166.497958,0.000395,30]
[381265009,1756113040046,-529.29072822,0.000395,30]
[381265010,1756113040060,-151.0,0.000395,30]
[381265011,1756113040073,-151.0,0.000395,30]
[381265012,1756113040085,-151.0,0.000395,30]
[381265013,1756113040098,-151.0,0.000395,30]
[381265014,1756113040110,-151.0,0.000395,30]
[381265015,1756113040123,-292.55411786,0.000395,30]
[381265017,1756113040137,-151.0,0.000395,30]
[381265018,1756113040150,-151.0,0.000395,30]
[381265019,1756113040162,-370000.0,0.000395,2]
[381265021,1756113040174,-502.91004027,0.0003955,5]
[381265023,1756113040186,-500.0,0.0003955,5]
[381265025,1756113040200,-500.78050353,0.0003955,5]
[381265027,1756113040210,-500.0,0.0003955,5]
[381265029,1756113040220,-500.76034536,0.0003955,5]
[381265031,1756113040231,-502.65984623,0.0003955,5]
[381265033,1756113040241,-311.57788434,0.0003955,5]
[381265035,1756113040250,-160.0,0.00039592,3]
[381265037,1756113040259,-3995.23,0.00039612,2]
[381265039,1756113040268,-200.0,0.00039678,120]
[381265041,1756113040278,-25335.9583013,0.0003969,3]
[381265043,1756113040287,-180.89,0.000397,7]
[381265045,1756113040297,-1166.04,0.000397,7]
[381265047,1756113040306,-4422.88,0.000397,14]
[381265049,1756113040315,-150.882962,0.00039711,2]
[381265051,1756113040324,-4252.06,0.00039726,14]
[381265053,1756113040334,-151.0,0.00039726,30]
[381265093,1756113040679,-697.9156503,0.00039726,30]
[381265097,1756113040708,-150.882962,0.00039766,2]
[381265099,1756113040723,-280.471035,0.00039821,30]
[381265102,1756113040732,-151.0,0.00039821,30]
[381265104,1756113040742,-151.0,0.00039821,30]
[381265105,1756113040751,-150.882962,0.00039822,2]
[381265107,1756113040760,-200.0,0.0003991,120]
[381265109,1756113040769,-151.0,0.0003999,30]
[381265111,1756113040779,-151.0,0.0003999,30]
[381265113,1756113040788,-269.516333,0.0003999,30]
[381265115,1756113040797,-151.0,0.0003999,30]
[381265117,1756113040806,-4252.06,0.0004,14]
[381265119,1756113040815,-308.2471057,0.0004,30]
[381265121,1756113040825,-194.808,0.00040003,2]
[381265123,1756113040835,-973.0,0.00040003,2]
[381265125,1756113040844,-637.0,0.00040003,2]
[381265127,1756113040854,-2155.0,0.00040003,2]
[381265129,1756113040863,-153.0,0.0004001,30]
[381265131,1756113040872,-153.0,0.0004001,30]
[381265133,1756113040882,-153.0,0.0004001,30]
[381265135,1756113040891,-153.0,0.0004001,30]
[381265137,1756113040900,-153.0,0.00040011,30]
[381265139,1756113040910,-153.0,0.00040011,30]
[381265141,1756113040919,-153.0,0.00040011,30]
[381265143,1756113040929,-153.0,0.00040011,30]
[381265145,1756113040938,-153.0,0.00040011,30]
[381265147,1756113040947,-153.0,0.0004002,30]
[381265149,1756113040956,-153.0,0.0004002,30]
[381265151,1756113040965,-153.0,0.0004002,30]
[381265153,1756113040975,-153.0,0.0004002,30]
[381265155,1756113040984,-153.0,0.00040022,30]
[381265157,1756113040993,-153.0,0.00040022,30]
[381265159,1756113041002,-153.0,0.00040022,30]
[381265161,1756113041011,-153.0,0.00040022,30]
[381265163,1756113041021,-153.0,0.00040031,30]
[381265165,1756113041030,-153.0,0.00040031,30]
[381265167,1756113041039,-153.0,0.00040031,30]
[381265169,1756113041054,-153.0,0.00040031,30]
[381265171,1756113041063,-153.0,0.00040032,30]
[381265173,1756113041073,-153.0,0.00040032,30]
[381265175,1756113041082,-153.0,0.00040032,30]
[381265177,1756113041093,-153.0,0.00040032,30]
[381265179,1756113041102,-153.0,0.00040032,30]
[381265181,1756113041111,-180.8901163,0.0004004,2]
[381265183,1756113041122,-153.0,0.0004004,30]
[381265185,1756113041131,-153.0,0.0004004,30]
[381265187,1756113041140,-153.0,0.0004004,30]
[381265189,1756113041149,-153.0,0.0004004,30]
[381265191,1756113041158,-153.0,0.00040042,30]
[381265193,1756113041167,-153.0,0.00040042,30]
[381265195,1756113041177,-153.0,0.00040042,30]
[381265197,1756113041187,-153.0,0.00040042,30]
[381265199,1756113041197,-151.499995,0.00040095,30]
[381265201,1756113041206,-504.22070371,0.00040098,5]
[381265203,1756113041217,-150.882962,0.0004012,7]
[381265205,1756113041226,-153.006012,0.00040201,30]
[381265207,1756113041235,-151.0,0.00040201,30]
[381265209,1756113041245,-496.0,0.0004022,120]
[381265211,1756113041254,-151.0,0.00040228,30]
[381265213,1756113041263,-500.0,0.00040237,5]
[381265215,1756113041272,-918.54963044,0.00040244,2]
[381265217,1756113041283,-151.0,0.00040273,30]
[381265219,1756113041292,-151.0,0.00040273,30]
[381265221,1756113041301,-151.0,0.00040273,30]
[381265223,1756113041310,-4252.06,0.00040273,14]
[381265225,1756113041319,-164.0,0.00040274,90]
[381265227,1756113041329,-581.6464433,0.00040274,30]
[381265229,1756113041338,-580.7857811,0.00040274,30]
[381265231,1756113041347,-201.0,0.00040359,30]
[381265233,1756113041356,-180.8901163,0.00040365,2]
[381265235,1756113041366,-151.0,0.000404,15]
[381265237,1756113041375,-151.0,0.000405,10]
[381265239,1756113041385,-151.0,0.000405,15]
[381265241,1756113041395,-4252.06,0.00040547,14]
[381265242,1756113041404,-151.0,0.000406,12]
[381265244,1756113041413,-151.0,0.000406,19]
[381265245,1756113041422,-172.0,0.00040611,7]
[381265246,1756113041431,-160.0,0.00040618,30]
[381265247,1756113041441,-180.8901163,0.0004069,2]
[381265248,1756113041450,-151.0,0.000407,16]
[381265249,1756113041458,-500.0,0.00040717,15]
[381265250,1756113041467,-500.0,0.00040721,15]
[381265251,1756113041476,-151.0,0.0004079,30]
[381265252,1756113041485,-25335.9583013,0.0004079,3]
[381265253,1756113041495,-151.0,0.0004079,30]
[381265254,1756113041504,-151.0,0.000408,10]
[381265255,1756113041513,-151.0,0.000408,16]
[381265256,1756113041523,-151.97109,0.000408,30]
[381265258,1756113041532,-78176.50863771,0.000408,60]
[381265260,1756113041541,-150.882962,0.000408,60]
[381265262,1756113041551,-151.0,0.000408,14]
[381265264,1756113041560,-151.0,0.000408,30]
[381265266,1756113041569,-151.0,0.000408,30]
[381265268,1756113041578,-151.0,0.000408,30]
[381265270,1756113041587,-152377.40578005,0.000408,120]
[381265277,1756113041643,-68069.85182187,0.000408,120]
[381265280,1756113041658,-51907.38711091,0.000408,120]
[381267524,1756113262240,160.0,0.000253,2]
[381267525,1756113286907,593.1346,0.00024,2]
[381267526,1756113437659,320.0,0.000255,7]
[381267527,1756113611791,161.731367,0.00013699,2]
[381267529,1756113703418,183.007,0.00025315,9]
[381267537,1756113996337,-189.95203211,0.00025892,2]
[381267546,1756114050074,-14205.7388641,0.00025892,2]
[381267591,1756114231834,-307.5505229,0.00025716,2]
[381267592,1756114231844,-18878.46475726,0.00025792,2]
[381267593,1756114231853,-161.50970736,0.00025892,2]
[381267594,1756114231863,-1073.70914761,0.00025893,2]
[381267595,1756114231873,-1200.0,0.00025992,2]
[381267596,1756114231882,-300.0,0.00026362,2]
[381267597,1756114231891,-300.0,0.00026362,2]
[381267599,1756114231900,-300.0,0.00026362,2]
[381267601,1756114231910,-1200.0,0.00026362,2]
[381267602,1756114231918,-15415.9962958,0.00026363,2]
[381267604,1756114231927,-1000.0,0.00026654,2]
[381267605,1756114231937,-161.50970736,0.00027297,2]
[381267606,1756114231946,-161.731367,0.00027397,2]
[381267607,1756114231956,-672.5932306,0.000277,2]
[381267608,1756114231966,-10000.0,0.00028102,2]
[381267609,1756114231975,-1200.0,0.00028129,2]
[381267610,1756114231984,-1004.6740066,0.00028287,2]
[381267611,1756114231994,-1073.70914754,0.00028364,2]
[381267612,1756114232003,-420.0,0.00028519,2]
[381267613,1756114232013,-420.0,0.00028519,2]
[381267614,1756114232022,-420.0,0.00028519,2]
[381267615,1756114232031,-31757.8919238,0.00028673,2]
[381267616,1756114232041,-2775.8364584,0.00028717,2]
[381267617,1756114232050,-447.444216,0.00029019,2]
[381267618,1756114232060,-2680.29913973,0.00029923,2]
[381267619,1756114232070,-537.03875851,0.0003,2]
[381267620,1756114232079,-189.62702761,0.00030136,2]
[381267621,1756114232089,-14155.9911266,0.00030137,2]
[381267622,1756114232098,-200.0,0.00030582,120]
[381267623,1756114232107,-160.0,0.00030636,2]
[381267624,1756114232116,-306.18321016,0.0003078,2]
[381267625,1756114232125,-402.5710281,0.00030825,4]
[381267626,1756114232135,-1073.70914754,0.00030834,2]
[381267627,1756114232144,-530.0,0.00030852,2]
[381267628,1756114232154,-12667.9791506,0.0003086,2]
[381267629,1756114232163,-543.49,0.00030862,3]
[381267630,1756114232172,-271.74,0.00030862,3]
[381267631,1756114232182,-815.26,0.00030862,3]
[381267632,1756114232191,-500.0,0.00030871,2]
[381267633,1756114232201,-500.0,0.00030871,2]
[381267634,1756114232210,-333.70245909,0.00030871,2]
[381267635,1756114232219,-92596.61928088,0.0003088,20]
[381267707,1756114237981,-38596.25345731,0.0003088,20]
[381267709,1756114237992,-11555.6346263,0.0003088,20]
[381267711,1756114238003,-653.68126957,0.0003088,20]
[381267714,1756114238021,-3369.9,0.0003088,20]
[381267718,1756114238040,-5224.41366,0.0003088,20]
[381267721,1756114238057,-6144.10258568,0.0003088,20]
[381267723,1756114238132,-40693.84856918,0.0003088,20]
[381267724,1756114238150,-285.58106896,0.0003088,20]
[381267929,1756114240000,-277.55444643,0.0003088,20]
[381268224,1756114242899,-199.0,0.00026749,20]
[381268226,1756114242908,-2141.61804512,0.0003087,10]
[381268232,1756114242956,-294.00195488,0.0003087,10]
[381268234,1756114242965,-564.22673378,0.0003088,20]
[381268543,1756114246244,-14743.05177244,0.0003088,20]
[381268545,1756114246254,-1049.44,0.000309,7]
[381268547,1756114246263,-3980.6,0.000309,7]
[381268549,1756114246273,-529.07721688,0.000309,5]
[381268551,1756114246283,-502.64486148,0.000309,5]
[381268553,1756114246292,-500.0,0.000309,5]
[381268555,1756114246302,-500.75627466,0.000309,3]
[381268557,1756114246311,-500.0,0.000309,5]
[381268559,1756114246320,-500.0,0.000309,5]
[381268561,1756114246329,-367.24014907,0.000309,5]
[381268563,1756114246338,-501.26858797,0.000309,5]
[381268565,1756114246348,-500.0,0.000309,5]
[381268567,1756114246358,-500.0,0.000309,5]
[381268569,1756114246370,-500.0,0.000309,5]
[381268571,1756114246379,-500.0,0.000309,5]
[381268573,1756114246388,-502.19167378,0.000309,5]
[381268575,1756114246397,-500.0,0.000309,5]
[381268577,1756114246408,-500.0,0.000309,5]
[381268580,1756114246421,-500.0,0.000309,5]
[381268581,1756114246431,-500.0,0.000309,7]
[381268584,1756114246442,-500.0,0.00031174,7]
[381268586,1756114246451,-260.0,0.00031184,2]
[381268588,1756114246460,-602.24736929,0.00031448,5]
[381268590,1756114246469,-500.0,0.00031448,5]
[381268592,1756114246479,-611.93529746,0.00031448,5]
[381268594,1756114246489,-354.05278488,0.00031448,5]
[381268596,1756114246498,-506.10345301,0.00031448,5]
[381268598,1756114246507,-484.46874701,0.00031448,7]
[381268600,1756114246516,-360.0,0.00031732,2]
[381268602,1756114246525,-1086.98,0.00032232,3]
[381268604,1756114246534,-543.48,0.00032232,3]
[381268605,1756114246543,-300.0,0.0003228,2]
[381268607,1756114246552,-16388.21039065,0.000329,2]
[381268609,1756114246561,-216.64038807,0.000329,2]
[381268611,1756114246570,-1073.70914754,0.00033305,2]
[381268613,1756114246580,-12701.40788335,0.00034705,120]
[381268615,1756114246589,-168.0,0.00034928,2]
[381268617,1756114246599,-1000.0,0.00035,5]
[381268619,1756114246608,-500.0,0.00035,30]
[381268621,1756114246617,-500.0,0.00035,10]
[381268623,1756114246626,-168.0,0.00035305,2]
[381268625,1756114246635,-1049.44,0.000354,7]
[381268627,1756114246645,-3980.6,0.000354,14]
[381268629,1756114246654,-168.0,0.00035742,2]
[381268631,1756114246663,-1073.70914754,0.00035775,2]
[381268633,1756114246672,-306.18321014,0.00035888,2]
[381268635,1756114246681,-354.00720343,0.000359,2]
[381268636,1756114246690,-12667.9791506,0.0003617,3]
[381268638,1756114246700,-250.0,0.0003618,2]
[381268640,1756114246711,-250.0,0.0003618,2]
[381268642,1756114246720,-250.0,0.0003618,2]
[381268644,1756114246729,-323.32113188,0.0003618,2]
[381268646,1756114246739,-500.0,0.0003618,2]
[381268648,1756114246748,-500.0,0.0003618,2]
[381268650,1756114246757,-500.0,0.0003618,2]
[381268652,1756114246766,-500.0,0.0003618,2]
[381268654,1756114246775,-500.0,0.0003618,2]
[381268656,1756114246785,-500.0,0.0003618,2]
[381268658,1756114246795,-500.0,0.0003618,2]
[381268660,1756114246804,-500.0,0.0003618,2]
[381268662,1756114246814,-500.0,0.0003618,2]
[381268664,1756114246823,-500.0,0.0003618,2]
[381268666,1756114246833,-500.0,0.0003618,2]
[381268668,1756114246842,-216.04034502,0.00036653,2]
[381268670,1756114246851,-199.0,0.000368,120]
[381268672,1756114246860,-199.0,0.000368,120]
[381268673,1756114246870,-167.69496403,0.00038,3]
[381268675,1756114246879,-1073.70914754,0.00038246,2]
[381268677,1756114246888,-2657.54,0.00038356,14]
[381268679,1756114246898,-562.7654825,0.00038359,2]
[381268681,1756114246907,-2657.54,0.0003863,14]
[381268683,1756114246916,-180.89011632,0.00038784,2]
[381268685,1756114246925,-376.30788339,0.00038884,3]
[381268687,1756114246934,-2657.54,0.00038904,14]
[381268690,1756114246951,-1049.44,0.00039,7]
[381268692,1756114246960,-3980.6,0.00039,14]
[381268694,1756114246969,-716.52007128,0.00039139,2]
[381268696,1756114246978,-2657.54,0.00039178,14]
[381268698,1756114246988,-325.0,0.000394,2]
[381268700,1756114246997,-2657.54,0.00039452,14]
[381268702,1756114247006,-151.0,0.00039452,30]
[381268704,1756114247015,-1552.73,0.00039725,120]
[381268706,1756114247024,-1975.13126215,0.00039726,14]
[381270161,1756114294224,1278.47091546,0.00027397,120]
[381270164,1756114647424,161.731367,0.00013699,2]
[381270169,1756114747228,317.0,0.00027397,120]
[381270170,1756114898435,551.7,0.000255,2]
[381270171,1756114916591,413.77,0.000255,2]
[381270172,1756114934418,400.0,0.000255,2]
[381270173,1756114948692,420.66,0.000255,2]
[381270174,1756114960054,420.66,0.000255,2]
[381270178,1756115431960,-223.722108,0.0002574,2]
[381270179,1756115431970,-1200.0,0.00025878,2]
[381270180,1756115431979,-300.0,0.00025878,2]
[381270181,1756115431989,-14205.7388641,0.00025879,2]
[381270182,1756115431998,-1000.0,0.00025971,2]
[381270183,1756115432007,-212.9898737,0.00025979,2]
[381270184,1756115432017,-268.42728692,0.0002689,2]
[381270185,1756115432026,-363.13048323,0.000269,2]
[381270186,1756115432035,-17439.3591259,0.0002699,2]
[381270187,1756115432045,-2029.68,0.0002699,10]
[381270188,1756115432054,-1691.4,0.0002699,10]
[381270189,1756115432063,-500.0,0.00026999,2]
[381270190,1756115432072,-169.16697609,0.00026999,2]
[381270191,1756115432083,-200.3423055,0.00026999,2]
[381270192,1756115432092,-500.0,0.00026999,2]
[381270193,1756115432101,-185.6590313,0.00026999,2]
[381270194,1756115432110,-345.30686679,0.00026999,2]
[381270195,1756115432120,-500.0,0.00026999,2]
[381270196,1756115432130,-500.0,0.00026999,2]
[381270197,1756115432140,-500.0,0.00026999,2]
[381270198,1756115432149,-471.19504821,0.00026999,2]
[381270199,1756115432163,-183.007,0.00026999,15]
[381270200,1756115432178,-97955.0,0.00027,2]
[381270201,1756115432188,-205.9845535,0.00027,2]
[381270202,1756115432197,-504.0734374,0.00027,2]
[381270203,1756115432206,-500.0,0.00027,2]
[381270204,1756115432215,-511.85607394,0.00027,2]
[381270205,1756115432224,-500.0,0.00027,2]
[381270206,1756115432234,-503.04231537,0.00027,2]
[381270207,1756115432243,-500.73617161,0.00027,2]
[381270208,1756115432252,-245.40502385,0.00027,2]
[381270209,1756115432261,-215.28365206,0.00027,2]
[381270210,1756115432272,-503.0231641,0.00027,2]
[381270211,1756115432283,-500.0,0.00027,2]
[381270212,1756115432293,-500.0,0.00027,2]
[381270213,1756115432302,-500.0,0.00027,2]
[381270214,1756115432312,-501.14039237,0.00027,2]
[381270215,1756115432321,-500.99581644,0.00027,2]
[381270216,1756115432331,-500.0,0.00027,2]
[381270217,1756115432340,-502.27128288,0.00027,2]
[381270218,1756115432349,-500.0,0.00027,2]
[381270219,1756115432359,-500.0,0.00027,2]
[381270220,1756115432368,-512.5397822,0.00027,2]
[381270221,1756115432377,-502.8241067,0.00027,2]
[381270222,1756115432387,-501.23549011,0.00027,2]
[381270223,1756115432396,-501.31864272,0.00027,2]
[381270224,1756115432405,-504.55326767,0.00027,2]
[381270225,1756115432414,-503.62310936,0.00027,2]
[381270226,1756115432423,-500.0,0.00027548,5]
[381270227,1756115432432,-512.20075306,0.00027548,5]
[381270228,1756115432442,-1000.0,0.00027548,5]
[381270229,1756115432451,-251.53,0.00027914,3]
[381270230,1756115432460,-7499.1785848,0.00027924,2]
[381270231,1756115432469,-420.0,0.00028009,2]
[381270232,1756115432479,-1500.0,0.00028096,5]
[381270233,1756115432488,-2000.0,0.00028644,5]
[381270234,1756115432497,-2500.0,0.00029192,5]
[381270235,1756115432507,-4732.65691541,0.00029197,2]
[381270236,1756115432516,-268.42728688,0.00029257,2]
[381270237,1756115432526,-754.64,0.00029274,3]
[381270238,1756115432535,-503.06,0.00029284,3]
[381270239,1756115432544,-6222.4374398,0.00030137,2]
[381270240,1756115432554,-150.0,0.00030137,2]
[381270241,1756115432564,-363.13048322,0.000303,2]
[381270242,1756115432573,-1000.0,0.000305,3]
[381270243,1756115432583,-161.731367,0.00031311,2]
[381270244,1756115432593,-268.42728688,0.00031625,2]
[381270245,1756115432602,-1576.34,0.00032876,120]
[381270246,1756115432613,-290.1543425,0.00033271,2]
[381270247,1756115432623,-250.0,0.00033692,2]
[381270248,1756115432633,-363.13048322,0.000337,2]
[381270249,1756115432642,-268.42728688,0.00033992,2]
[381270250,1756115432652,-155.0,0.00034504,120]
[381270251,1756115432671,-199.0,0.00034505,120]
[381270252,1756115432687,-1576.34,0.0003452,120]
[381270253,1756115432698,-199.0,0.00034605,120]
[381270254,1756115432708,-199.0,0.000349,10]
[381270255,1756115432722,-208.39347265,0.00035616,7]
[381270256,1756115432734,-1576.34,0.00036164,120]
[381270257,1756115432744,-17439.3591259,0.0003617,3]
[381270258,1756115432754,-167.49627955,0.0003618,2]
[381270259,1756115432763,-300.0,0.0003618,2]
[381270260,1756115432773,-500.0,0.0003618,2]
[381270261,1756115432782,-300.0,0.0003618,2]
[381270262,1756115432791,-500.0,0.0003618,2]
[381270263,1756115432800,-300.0,0.0003618,2]
[381270264,1756115432810,-500.0,0.0003618,2]
[381270265,1756115432819,-446.93098878,0.0003618,2]
[381270266,1756115432828,-500.0,0.0003618,2]
[381270267,1756115432838,-500.0,0.0003618,2]
[381270268,1756115432849,-500.0,0.0003618,2]
[381270269,1756115432858,-500.0,0.0003618,2]
[381270270,1756115432867,-151.0,0.0003618,2]
[381270271,1756115432877,-500.0,0.0003618,2]
[381270272,1756115432886,-500.0,0.0003618,2]
[381270273,1756115432896,-232.9102796,0.0003618,2]
[381270274,1756115432905,-1000.0,0.0003618,2]
[381270275,1756115432914,-500.0,0.0003618,2]
[381270276,1756115432923,-500.0,0.0003618,2]
[381270277,1756115432933,-1000.0,0.0003618,2]
[381270278,1756115432942,-567.0,0.0003618,2]
[381270279,1756115432952,-9969.05260242,0.0003618,2]
[381270280,1756115432961,-3096.02,0.000362,14]
[381270281,1756115432971,-268.42728688,0.00036359,2]
[381270282,1756115432980,-168.0,0.00036694,2]
[381270283,1756115432990,-191.13041803,0.00036785,3]
[381270284,1756115433000,-17439.3591259,0.00036785,3]
[381270285,1756115433010,-35082.925662,0.00036795,2]
[381270286,1756115433020,-1248.43406814,0.00037034,2]
[381270287,1756115433030,-363.13048322,0.000371,2]
[381270288,1756115433041,-168.0,0.00037604,2]
[381270289,1756115433051,-1576.34,0.00037808,120]
[381270290,1756115433061,-4781.25354212,0.00038256,2]
[381270291,1756115433071,-17439.3591259,0.00038346,3]
[381270292,1756115433082,-1539.36,0.00038356,120]
[381270293,1756115433092,-1539.36,0.00038356,120]
[381270294,1756115433103,-1539.36,0.00038356,120]
[381270295,1756115433118,-1435.42002513,0.00038356,120]
[381270296,1756115433140,-103.93997487,0.00038356,120]
[381270297,1756115433150,-841.14002513,0.00038356,120]
[381270298,1756115433163,-698.21997487,0.00038356,120]
[381270299,1756115433174,-1539.36,0.00038356,120]
[381270300,1756115433185,-1539.36,0.00038356,120]
[381270301,1756115433195,-1539.36,0.00038356,120]
[381270302,1756115433206,-1539.36,0.00038356,120]
[381270304,1756115433216,-1539.36,0.00038356,120]
[381270306,1756115433227,-1539.36,0.00038356,120]
[381270308,1756115433238,-1539.36,0.00038356,120]
[381270310,1756115433248,-1539.36,0.00038356,120]
[381270312,1756115433258,-1539.36,0.00038356,120]
[381270314,1756115433269,-1539.36,0.00038356,120]
[381270316,1756115433279,-1539.36,0.00038356,120]
[381270318,1756115433289,-1539.36,0.00038356,120]
[381270320,1756115433299,-1539.36,0.00038356,120]
[381270322,1756115433310,-1539.36,0.00038356,120]
[381270324,1756115433320,-1539.36,0.00038356,120]
[381270326,1756115433330,-1539.36,0.00038356,120]
[381270328,1756115433341,-1539.36,0.00038356,120]
[381270330,1756115433351,-1539.36,0.00038356,120]
[381270331,1756115433360,-320.16452513,0.00038356,120]
[381270417,1756115437832,-500.0,0.00036784,15]
[381270418,1756115437841,-325.92991131,0.00036784,15]
[381270419,1756115437850,-433.59172136,0.00036784,15]
[381270420,1756115437861,-1219.26127235,0.00038356,120]
[381270421,1756115437871,-2021.59,0.00038356,14]
[381270422,1756115437880,-150.0,0.00038356,120]
[381270423,1756115437890,-150.0,0.00038356,120]
[381270424,1756115437899,-223.722108,0.0003861,2]
[381270425,1756115437908,-2021.59,0.0003863,14]
[381270426,1756115437917,-268.42728688,0.00038726,2]
[381270427,1756115437927,-153.0,0.00038902,30]
[381270428,1756115437937,-153.0,0.00038902,30]
[381270429,1756115437947,-153.0,0.00038903,30]
[381270430,1756115437956,-153.0,0.00038903,30]
[381270431,1756115437965,-2021.59,0.00038904,14]
[381270432,1756115437974,-153.0,0.00038911,30]
[381270433,1756115437984,-153.0,0.00038911,30]
[381270434,1756115437993,-153.0,0.00038913,30]
[381270435,1756115438002,-153.0,0.00038913,30]
[381270436,1756115438012,-153.0,0.0003892,30]
[381270437,1756115438021,-153.0,0.0003892,30]
[381270438,1756115438031,-153.0,0.00038922,30]
[381270439,1756115438040,-153.0,0.00038922,30]
[381270440,1756115438050,-153.0,0.0003893,30]
[381270441,1756115438060,-153.0,0.0003893,30]
[381270442,1756115438071,-153.0,0.00038931,30]
[381270443,1756115438080,-153.0,0.00038931,30]
[381270444,1756115438090,-3382.43195308,0.00039062,120]
[381270445,1756115438099,-3096.02,0.000391,14]
[381270446,1756115438109,-2021.59,0.00039178,14]
[381270447,1756115438118,-4703.61081123,0.00039452,120]
[381270462,1756115440030,-2570.64641172,0.00039452,120]
[381270464,1756115440040,-1576.34,0.00039452,120]
[381270466,1756115440049,-453.33658828,0.00039452,14]
[381270760,1756115443182,-1568.25341172,0.00039452,14]
[381270763,1756115443192,-3784.06362518,0.00039626,2]
[381271239,1756115447808,-160.0,0.00039665,2]
[381271241,1756115447818,-160.0,0.00039669,2]
[381271243,1756115447826,-216.04034502,0.00039669,2]
[381271245,1756115447836,-502.83727098,0.00039726,14]
[381271252,1756115447896,-1518.75272902,0.00039726,14]
[381271254,1756115447905,-973.0,0.0003974,2]
[381271256,1756115447914,-637.0,0.0003974,2]
[381271259,1756115447923,-2155.0,0.0003974,2]
[381271261,1756115447933,-409.0,0.0003974,2]
[381271263,1756115447943,-199.0,0.000399,120]
[381271264,1756115447953,-280.79214464,0.0003999,3]
[381271267,1756115447972,-17158.56698126,0.0003999,3]
[381271270,1756115447982,-151.0,0.0003999,30]
[381271272,1756115447991,-1000.0,0.0004,120]
[381271274,1756115448000,-1000.0,0.0004,30]